fUSD/lending_fUSD_20250720
["ID","MTS","AMOUNT","RATE_DAILY","PERIOD"]
[373591041,1753055467832,-968.5,0.00019178,2]
[373591042,1753055467842,-480.0,0.00019178,2]
[373591043,1753055467851,-480.0,0.00019178,2]
[373591044,1753055467861,-873.48,0.00019178,2]
[373591045,1753055467870,-500.0,0.00019178,2]
[373591046,1753055467880,-1144.05,0.00019178,2]
[373591047,1753055467889,-500.0,0.00019178,2]
[373591048,1753055467898,-480.0,0.00019178,2]
[373591049,1753055467908,-500.0,0.00019178,2]
[373591050,1753055467917,-500.0,0.00019178,2]
[373591051,1753055467927,-665.72,0.00019178,2]
[373591052,1753055467936,-480.0,0.00019178,2]
[373591053,1753055467946,-500.0,0.00019178,2]
[373591054,1753055467955,-4582.78,0.00019178,2]
[373591055,1753055467965,-480.0,0.00019178,2]
[373591056,1753055467974,-500.0,0.00019178,2]
[373591057,1753055467984,-500.0,0.00019178,2]
[373591058,1753055467994,-500.0,0.00019178,2]
[373591059,1753055468003,-480.0,0.00019178,2]
[373591060,1753055468013,-1162.44,0.00019178,2]
[373591061,1753055468022,-482.85755642,0.00019178,2]
[373591062,1753055468035,-500.0,0.00019178,2]
[373591063,1753055468044,-500.0,0.00019178,2]
[373591064,1753055468054,-500.0,0.00019178,2]
[373591065,1753055468063,-500.0,0.00019178,2]
[373591066,1753055468072,-500.0,0.00019178,2]
[373591067,1753055468081,-500.0,0.00019178,2]
[373591068,1753055468091,-2848.38,0.00019178,2]
[373591069,1753055468101,-480.0,0.00019178,2]
[373591070,1753055468110,-500.0,0.00019178,2]
[373591071,1753055468120,-500.0,0.00019178,2]
[373591072,1753055468129,-1300.7,0.00019178,2]
[373591073,1753055468138,-500.0,0.00019178,2]
[373591074,1753055468148,-500.0,0.00019178,2]
[373591075,1753055468157,-492.77869793,0.00019178,2]
[373591076,1753055468166,-480.0,0.00019178,2]
[373591077,1753055468176,-500.0,0.00019178,2]
[373591078,1753055468185,-480.0,0.00019178,2]
[373591079,1753055468195,-4306.73,0.00019178,2]
[373591080,1753055468204,-500.0,0.00019178,2]
[373591081,1753055468214,-697.79,0.00019178,2]
[373591082,1753055468223,-1516.36,0.00019178,2]
[373591083,1753055468233,-480.0,0.00019178,2]
[373591084,1753055468242,-1000.0,0.00019178,5]
[373591085,1753055468251,-667.28,0.00019178,2]
[373591086,1753055468261,-480.0,0.00019178,2]
[373591087,1753055468271,-510.67863598,0.00019178,2]
[373591088,1753055468282,-480.0,0.00019178,2]
[373591089,1753055468291,-480.0,0.00019178,2]
[373591090,1753055468301,-480.0,0.00019178,2]
[373591091,1753055468310,-1503.11,0.00019178,2]
[373591092,1753055468319,-480.0,0.00019178,2]
[373591093,1753055468328,-1997.74,0.00019178,2]
[373591094,1753055468338,-8864.03,0.00019178,2]
[373591095,1753055468347,-480.0,0.00019178,2]
[373591096,1753055468357,-480.0,0.00019178,2]
[373591097,1753055468366,-2254.31,0.00019178,2]
[373591098,1753055468376,-480.0,0.00019178,2]
[373591099,1753055468385,-2414.83,0.00019178,2]
[373591100,1753055468395,-480.0,0.00019178,2]
[373591101,1753055468404,-2346.59,0.00019178,2]
[373591102,1753055468414,-480.0,0.00019178,2]
[373591103,1753055468619,-253.09077951,0.00019178,2]
[373591104,1753055468638,-460.0,0.00019178,2]
[373591105,1753055468647,-481.79,0.00019178,2]
[373591106,1753055468657,-480.0,0.00019178,2]
[373591107,1753055468667,-181.87605131,0.00019178,2]
[373591108,1753055468677,-480.0,0.00019178,2]
[373591109,1753055468686,-480.0,0.00019178,2]
[373591110,1753055468696,-502.92591325,0.00019178,2]
[373591111,1753055468706,-3298.81,0.00019178,2]
[373591112,1753055468715,-480.0,0.00019178,2]
[373591113,1753055468726,-463.54743276,0.00019178,2]
[373591114,1753055468736,-480.0,0.00019178,2]
[373591115,1753055468747,-480.0,0.00019178,2]
[373591116,1753055468757,-1508.5,0.00019178,2]
[373591117,1753055468767,-4353.48,0.00019178,2]
[373591118,1753055468779,-480.0,0.00019178,2]
[373591119,1753055468789,-1340.37,0.00019178,2]
[373591120,1753055468799,-480.0,0.00019178,2]
[373591121,1753055468809,-480.0,0.00019178,2]
[373591122,1753055468818,-480.0,0.00019178,2]
[373591123,1753055468828,-741.2,0.00019178,2]
[373591124,1753055468838,-480.0,0.00019178,2]
[373591125,1753055468848,-529.22,0.00019178,2]
[373591126,1753055468858,-480.0,0.00019178,2]
[373591127,1753055468868,-480.0,0.00019178,2]
[373591128,1753055468878,-480.0,0.00019178,2]
[373591129,1753055468888,-2980.28,0.00019178,2]
[373591130,1753055468897,-480.0,0.00019178,2]
[373591131,1753055468908,-480.0,0.00019178,2]
[373591132,1753055468918,-500.0,0.00019178,2]
[373591133,1753055468927,-500.0,0.00019178,2]
[373591134,1753055468936,-500.0,0.00019178,2]
[373591135,1753055468946,-500.0,0.00019178,2]
[373591136,1753055468955,-500.0,0.00019178,2]
[373591137,1753055468965,-500.0,0.00019178,2]
[373591138,1753055468974,-500.0,0.00019178,2]
[373591139,1753055468984,-171.62731424,0.00019178,2]
[373591140,1753055468994,-500.0,0.00019178,2]
[373591141,1753055469003,-500.0,0.00019178,2]
[373591142,1753055469013,-480.0,0.00019178,2]
[373591143,1753055469022,-500.0,0.00019178,2]
[373591144,1753055469032,-500.0,0.00019178,2]
[373591145,1753055469042,-1170.02,0.00019178,2]
[373591146,1753055469051,-230.28143637,0.00019178,2]
[373591147,1753055469061,-480.19199403,0.00019178,2]
[373591148,1753055469071,-480.0,0.00019178,2]
[373591149,1753055469081,-480.0,0.00019178,2]
[373591150,1753055469091,-480.0,0.00019178,2]
[373591151,1753055469101,-480.0,0.00019178,2]
[373591152,1753055469112,-1088.82,0.00019178,2]
[373591153,1753055469122,-480.0,0.00019178,2]
[373591154,1753055469131,-1109.08,0.00019178,2]
[373591155,1753055469141,-480.0,0.00019178,2]
[373591156,1753055469152,-480.0,0.00019178,2]
[373591157,1753055469161,-500.0,0.00019178,2]
[373591158,1753055469171,-7882.05,0.00019178,2]
[373591159,1753055469180,-480.0,0.00019178,2]
[373591160,1753055469191,-440.0,0.00019178,2]
[373591161,1753055469201,-825.59,0.00019178,2]
[373591162,1753055469210,-151.0,0.00019178,2]
[373591163,1753055469220,-3061.79,0.00019178,2]
[373591164,1753055469229,-212.89,0.00019178,2]
[373591165,1753055469238,-2660.16,0.00019178,2]
[373591166,1753055469248,-151.0,0.00019178,2]
[373591167,1753055469257,-151.0,0.00019178,2]
[373591168,1753055469267,-157.901398,0.00019178,2]
[373591169,1753055469276,-21402.4913889,0.00019178,2]
[373591170,1753055469286,-523.8189342,0.00019195,2]
[373591171,1753055469295,-588.0,0.00019203,2]
[373591172,1753055469305,-150.0,0.00019205,2]
[373591173,1753055469315,-263.2,0.00019217,2]
[373591174,1753055469324,-263.2,0.00019256,2]
[373591175,1753055469333,-512.0,0.00019259,4]
[373591176,1753055469343,-408.17003407,0.00019275,2]
[373591177,1753055469353,-500.0,0.00019275,2]
[373591178,1753055469362,-1161.04,0.00019275,2]
[373591179,1753055469371,-500.0,0.00019275,2]
[373591180,1753055469381,-151.0,0.00019276,2]
[373591181,1753055469391,-151.0,0.00019276,2]
[373591182,1753055469400,-500.0,0.00019285,2]
[373591183,1753055469409,-500.0,0.00019285,2]
[373591184,1753055469419,-1161.04,0.00019285,2]
[373591185,1753055469428,-500.0,0.00019285,2]
[373591186,1753055469438,-8073.08078,0.00019286,2]
[373591187,1753055469447,-151.0,0.00019286,2]
[373591188,1753055469457,-151.0,0.00019286,2]
[373591189,1753055469466,-265.33619,0.00019286,2]
[373591190,1753055469476,-151.0,0.00019286,2]
[373591191,1753055469486,-500.0,0.00019286,2]
[373591192,1753055469497,-500.0,0.00019286,2]
[373591193,1753055469506,-500.0,0.00019286,2]
[373591194,1753055469516,-500.0,0.00019286,2]
[373591195,1753055469526,-500.0,0.00019286,2]
[373591196,1753055469536,-500.0,0.00019286,2]
[373591197,1753055469546,-1161.04,0.00019286,2]
[373591198,1753055469555,-1161.04,0.00019286,2]
[373591199,1753055469565,-1161.04,0.00019286,2]
[373591200,1753055469574,-496.21,0.00019286,2]
[373591201,1753055469594,-151.0,0.00019287,2]
[373591202,1753055469605,-151.0,0.00019287,2]
[373591203,1753055469615,-151.0,0.00019287,2]
[373591204,1753055469627,-151.0,0.00019287,2]
[373591205,1753055469638,-906.747034,0.00019287,2]
[373591206,1753055469648,-882.095576,0.00019287,2]
[373591207,1753055469659,-842.356741,0.00019287,2]
[373591208,1753055469669,-480.0,0.00019287,2]
[373591209,1753055469679,-480.0,0.00019287,2]
[373591210,1753055469690,-406.5178356,0.00019287,2]
[373591211,1753055469700,-480.0,0.00019287,2]
[373591212,1753055469711,-451.27157497,0.00019287,2]
[373591213,1753055469721,-480.0,0.00019287,2]
[373591214,1753055469731,-480.0,0.00019287,2]
[373591215,1753055469741,-480.0,0.00019287,2]
[373591216,1753055469755,-480.0,0.00019287,2]
[373591217,1753055469765,-480.0,0.00019287,2]
[373591218,1753055469775,-434.38396917,0.00019287,2]
[373591219,1753055469788,-151.90227412,0.00019287,2]
[373591220,1753055469798,-460.0,0.00019287,2]
[373591221,1753055469808,-480.0,0.00019287,2]
[373591222,1753055469818,-1766.02,0.00019287,2]
[373591223,1753055469828,-480.0,0.00019287,2]
[373591224,1753055469839,-480.0,0.00019287,2]
[373591225,1753055469848,-480.0,0.00019287,2]
[373591226,1753055469858,-480.0,0.00019287,2]
[373591227,1753055469868,-480.0,0.00019287,2]
[373591228,1753055469878,-480.0,0.00019287,2]
[373591229,1753055469888,-480.0,0.00019287,2]
[373591230,1753055469897,-222.41531263,0.00019287,2]
[373591231,1753055469907,-480.0,0.00019287,2]
[373591232,1753055469917,-480.0,0.00019287,2]
[373591233,1753055469927,-480.0,0.00019287,2]
[373591234,1753055469937,-480.0,0.00019287,2]
[373591235,1753055469946,-480.0,0.00019287,2]
[373591236,1753055469957,-480.0,0.00019287,2]
[373591237,1753055469967,-480.0,0.00019287,2]
[373591238,1753055469976,-480.0,0.00019287,2]
[373591239,1753055469986,-480.0,0.00019287,2]
[373591240,1753055469996,-327.47264802,0.00019287,2]
[373591241,1753055470006,-480.0,0.00019287,2]
[373591242,1753055470015,-480.0,0.00019287,2]
[373591243,1753055470026,-480.0,0.00019287,2]
[373591244,1753055470038,-480.0,0.00019287,2]
[373591245,1753055470048,-480.0,0.00019287,2]
[373591246,1753055470058,-480.0,0.00019287,2]
[373591247,1753055470067,-480.0,0.00019287,2]
[373591248,1753055470077,-480.0,0.00019287,2]
[373591249,1753055470087,-480.0,0.00019287,2]
[373591250,1753055470096,-480.0,0.00019287,2]
[373591251,1753055470106,-480.0,0.00019287,2]
[373591252,1753055470116,-480.0,0.00019287,2]
[373591253,1753055470127,-480.0,0.00019287,2]
[373591254,1753055470136,-480.0,0.00019287,2]
[373591255,1753055470145,-480.0,0.00019287,2]
[373591256,1753055470155,-480.0,0.00019287,2]
[373591257,1753055470164,-480.0,0.00019287,2]
[373591258,1753055470174,-480.0,0.00019287,2]
[373591259,1753055470184,-480.0,0.00019287,2]
[373591260,1753055470194,-440.0,0.00019287,2]
[373591261,1753055470204,-480.0,0.00019287,2]
[373591262,1753055470213,-480.0,0.00019287,2]
[373591263,1753055470223,-345.67514557,0.00019287,2]
[373591264,1753055470232,-488.95158843,0.00019287,2]
[373591265,1753055470241,-480.0,0.00019287,2]
[373591266,1753055470251,-480.0,0.00019287,2]
[373591267,1753055470260,-490.23232355,0.00019287,2]
[373591268,1753055470269,-480.0,0.00019287,2]
[373591269,1753055470281,-480.0,0.00019287,2]
[373591270,1753055470290,-480.0,0.00019287,2]
[373591271,1753055470300,-480.0,0.00019287,2]
[373591272,1753055470309,-480.0,0.00019287,2]
[373591273,1753055470319,-439.3137582,0.00019287,2]
[373591274,1753055470328,-480.0,0.00019287,2]
[373591275,1753055470338,-440.0,0.00019287,2]
[373591276,1753055470347,-480.0,0.00019287,2]
[373591277,1753055470357,-550.07,0.00019287,2]
[373591278,1753055470366,-480.0,0.00019287,2]
[373591279,1753055470376,-443.22198099,0.00019287,2]
[373591280,1753055470385,-480.0,0.00019287,2]
[373591281,1753055470395,-660.38,0.00019287,2]
[373591282,1753055470404,-480.0,0.00019287,2]
[373591283,1753055470414,-480.0,0.00019287,2]
[373591284,1753055470423,-480.0,0.00019287,2]
[373591285,1753055470433,-480.0,0.00019287,2]
[373591286,1753055470442,-480.0,0.00019287,2]
[373591287,1753055470452,-460.0,0.00019287,2]
[373591288,1753055470462,-480.0,0.00019287,2]
[373591289,1753055470472,-725.02,0.00019287,2]
[373591290,1753055470482,-480.0,0.00019287,2]
[373591291,1753055470492,-369.05265781,0.00019287,2]
[373591292,1753055470502,-480.0,0.00019287,2]
[373591293,1753055470512,-565.28,0.00019287,2]
[373591294,1753055470522,-480.0,0.00019287,2]
[373591295,1753055470534,-480.0,0.00019287,2]
[373591296,1753055470543,-480.0,0.00019287,2]
[373591297,1753055470553,-480.0,0.00019287,2]
[373591298,1753055470563,-480.0,0.00019287,2]
[373591299,1753055470572,-480.0,0.00019287,2]
[373591300,1753055470582,-480.0,0.00019287,2]
[373591301,1753055470591,-381.99650349,0.00019287,2]
[373591302,1753055470601,-963.53,0.00019287,2]
[373591303,1753055470611,-480.0,0.00019287,2]
[373591304,1753055470621,-480.0,0.00019287,2]
[373591305,1753055470630,-480.0,0.00019287,2]
[373591306,1753055470640,-403.73353719,0.00019287,2]
[373591307,1753055470650,-480.0,0.00019287,2]
[373591308,1753055470660,-480.0,0.00019287,2]
[373591309,1753055470669,-480.0,0.00019287,2]
[373591310,1753055470679,-424.6338065,0.00019287,2]
[373591311,1753055470688,-480.0,0.00019287,2]
[373591312,1753055470698,-480.0,0.00019287,2]
[373591313,1753055470708,-480.0,0.00019287,2]
[373591314,1753055470717,-480.0,0.00019287,2]
[373591315,1753055470727,-290.87892668,0.00019287,2]
[373591316,1753055470738,-480.0,0.00019287,2]
[373591317,1753055470752,-901.55,0.00019287,2]
[373591318,1753055470761,-480.0,0.00019287,2]
[373591319,1753055470771,-480.0,0.00019287,2]
[373591320,1753055470781,-480.0,0.00019287,2]
[373591321,1753055470791,-480.0,0.00019287,2]
[373591322,1753055470800,-480.0,0.00019287,2]
[373591323,1753055470810,-480.0,0.00019287,2]
[373591324,1753055470821,-480.0,0.00019287,2]
[373591325,1753055470830,-704.94,0.00019287,2]
[373591326,1753055470840,-561.37,0.00019287,2]
[373591327,1753055470850,-480.0,0.00019287,2]
[373591328,1753055470860,-480.0,0.00019287,2]
[373591329,1753055470871,-255.38597845,0.00019287,2]
[373591330,1753055470880,-480.0,0.00019287,2]
[373591331,1753055470890,-480.0,0.00019287,2]
[373591332,1753055470899,-480.0,0.00019287,2]
[373591333,1753055470909,-534.06,0.00019287,2]
[373591334,1753055470918,-480.0,0.00019287,2]
[373591335,1753055470928,-480.0,0.00019287,2]
[373591336,1753055470937,-480.0,0.00019287,2]
[373591337,1753055470947,-480.0,0.00019287,2]
[373591338,1753055470956,-479.91535467,0.00019287,2]
[373591339,1753055470966,-772.47,0.00019287,2]
[373591340,1753055470975,-460.0,0.00019287,2]
[373591341,1753055470985,-480.0,0.00019287,2]
[373591342,1753055470994,-480.0,0.00019287,2]
[373591343,1753055471004,-954.23,0.00019287,2]
[373591344,1753055471013,-1097.85,0.00019287,2]
[373591345,1753055471023,-1458.93,0.00019287,2]
[373591346,1753055471033,-480.0,0.00019287,2]
[373591347,1753055471042,-981.72,0.00019287,2]
[373591348,1753055471052,-481.58,0.00019287,2]
[373591349,1753055471062,-330.34525385,0.00019287,2]
[373591350,1753055471071,-480.0,0.00019287,2]
[373591351,1753055471081,-480.0,0.00019287,2]
[373591352,1753055471091,-739.84,0.00019287,2]
[373591353,1753055471100,-480.0,0.00019287,2]
[373591354,1753055471109,-480.0,0.00019287,2]
[373591355,1753055471118,-637.76,0.00019287,2]
[373591356,1753055471216,-480.0,0.00019287,2]
[373591357,1753055471225,-480.0,0.00019287,2]
[373591358,1753055471234,-660.09,0.00019287,2]
[373591359,1753055471243,-480.0,0.00019287,2]
[373591360,1753055471252,-1056.59,0.00019287,2]
[373591361,1753055471261,-480.0,0.00019287,2]
[373591362,1753055471270,-480.0,0.00019287,2]
[373591363,1753055471279,-480.0,0.00019287,2]
[373591364,1753055471289,-480.0,0.00019287,2]
[373591365,1753055471298,-480.0,0.00019287,2]
[373591366,1753055471308,-2106.67,0.00019287,2]
[373591367,1753055471317,-460.0,0.00019287,2]
[373591368,1753055471326,-1177.27,0.00019287,2]
[373591369,1753055471335,-1042.68,0.00019287,2]
[373591370,1753055471344,-480.0,0.00019287,2]
[373591371,1753055471354,-512.59,0.00019287,2]
[373591372,1753055471363,-480.0,0.00019287,2]
[373591373,1753055471372,-480.0,0.00019287,2]
[373591374,1753055471381,-1082.73,0.00019287,2]
[373591375,1753055471390,-480.0,0.00019287,2]
[373591376,1753055471399,-356.23084541,0.00019287,2]
[373591377,1753055471409,-480.0,0.00019287,2]
[373591378,1753055471419,-618.4,0.00019287,2]
[373591379,1753055471428,-480.0,0.00019287,2]
[373591380,1753055471438,-1150.76,0.00019287,2]
[373591381,1753055471448,-480.0,0.00019287,2]
[373591382,1753055471458,-865.93,0.00019287,2]
[373591383,1753055471469,-725.55,0.00019287,2]
[373591384,1753055471478,-480.0,0.00019287,2]
[373591385,1753055471488,-480.0,0.00019287,2]
[373591386,1753055471498,-480.0,0.00019287,2]
[373591387,1753055471509,-192.77939774,0.00019287,2]
[373591388,1753055471520,-480.0,0.00019287,2]
[373591389,1753055471529,-480.0,0.00019287,2]
[373591390,1753055471539,-480.0,0.00019287,2]
[373591391,1753055471548,-749.26,0.00019287,2]
[373591392,1753055471558,-1572.15,0.00019287,2]
[373591393,1753055471568,-2293.85,0.00019287,2]
[373591394,1753055471577,-460.0,0.00019287,2]
[373591395,1753055471586,-480.0,0.00019287,2]
[373591396,1753055471596,-480.0,0.00019287,2]
[373591397,1753055471605,-587.44,0.00019287,2]
[373591398,1753055471615,-865.65,0.00019287,2]
[373591399,1753055471626,-1259.0,0.00019287,2]
[373591400,1753055471637,-1033.02,0.00019287,2]
[373591401,1753055471647,-601.75,0.00019287,2]
[373591402,1753055471656,-953.1,0.00019287,2]
[373591403,1753055471665,-1336.39,0.00019287,2]
[373591404,1753055471675,-441.48,0.00019287,2]
[373591405,1753055471684,-426.87990837,0.00019287,2]
[373591406,1753055471693,-435.33350282,0.00019287,2]
[373591407,1753055471703,-850.35,0.00019287,2]
[373591408,1753055471713,-917.93,0.00019287,2]
[373591409,1753055471724,-1757.42,0.00019287,2]
[373591410,1753055471735,-463.77367601,0.00019287,2]
[373591411,1753055471748,-480.0,0.00019287,2]
[373591412,1753055471758,-480.0,0.00019287,2]
[373591413,1753055471768,-460.0,0.00019287,2]
[373591414,1753055471778,-480.0,0.00019287,2]
[373591415,1753055471789,-480.0,0.00019287,2]
[373591416,1753055471798,-480.0,0.00019287,2]
[373591417,1753055471810,-480.0,0.00019287,2]
[373591418,1753055471819,-862.39,0.00019287,2]
[373591419,1753055471829,-440.0,0.00019287,2]
[373591420,1753055471841,-480.0,0.00019287,2]
[373591421,1753055471853,-480.0,0.00019287,2]
[373591422,1753055471862,-480.0,0.00019287,2]
[373591423,1753055471872,-480.0,0.00019287,2]
[373591424,1753055471881,-480.0,0.00019287,2]
[373591425,1753055471890,-422.72228986,0.00019287,2]
[373591426,1753055471899,-480.0,0.00019287,2]
[373591427,1753055471908,-658.91,0.00019287,2]
[373591428,1753055471918,-480.0,0.00019287,2]
[373591429,1753055471927,-609.01,0.00019287,2]
[373591430,1753055471937,-480.0,0.00019287,2]
[373591431,1753055471946,-480.0,0.00019287,2]
[373591432,1753055471956,-480.0,0.00019287,2]
[373591433,1753055471965,-826.89,0.00019287,2]
[373591434,1753055471974,-3180.24,0.00019287,2]
[373591435,1753055471984,-480.0,0.00019287,2]
[373591436,1753055471993,-1373.17,0.00019287,2]
[373591437,1753055472002,-4973.5,0.00019287,2]
[373591438,1753055472011,-480.0,0.00019287,2]
[373591439,1753055472021,-480.0,0.00019287,2]
[373591440,1753055472030,-480.0,0.00019287,2]
[373591441,1753055472039,-766.75,0.00019287,2]
[373591442,1753055472048,-480.0,0.00019287,2]
[373591443,1753055472057,-480.0,0.00019287,2]
[373591444,1753055472068,-1144.59,0.00019287,2]
[373591445,1753055472079,-1350.41,0.00019287,2]
[373591446,1753055472090,-480.0,0.00019287,2]
[373591447,1753055472099,-480.0,0.00019287,2]
[373591448,1753055472108,-1658.82,0.00019287,2]
[373591449,1753055472118,-614.53,0.00019287,2]
[373591450,1753055472127,-1190.75,0.00019287,2]
[373591451,1753055472137,-1307.47,0.00019287,2]
[373591452,1753055472146,-480.0,0.00019287,2]
[373591453,1753055472155,-1450.15,0.00019287,2]
[373591454,1753055472164,-480.0,0.00019287,2]
[373591455,1753055472174,-480.0,0.00019287,2]
[373591456,1753055472183,-480.0,0.00019287,2]
[373591457,1753055472194,-480.0,0.00019287,2]
[373591458,1753055472203,-1068.24,0.00019287,2]
[373591459,1753055472212,-440.0,0.00019287,2]
[373591460,1753055472222,-850.85,0.00019287,2]
[373591461,1753055472231,-480.0,0.00019287,2]
[373591462,1753055472240,-480.0,0.00019287,2]
[373591463,1753055472249,-2195.9,0.00019287,2]
[373591464,1753055472258,-480.0,0.00019287,2]
[373591465,1753055472267,-671.94,0.00019287,2]
[373591466,1753055472276,-480.0,0.00019287,2]
[373591467,1753055472286,-480.0,0.00019287,2]
[373591468,1753055472295,-480.0,0.00019287,2]
[373591469,1753055472304,-366.07588921,0.00019287,2]
[373591470,1753055472313,-480.0,0.00019287,2]
[373591471,1753055472322,-611.63,0.00019287,2]
[373591472,1753055472331,-741.55,0.00019287,2]
[373591473,1753055472341,-480.0,0.00019287,2]
[373591474,1753055472350,-1191.53,0.00019287,2]
[373591475,1753055472359,-480.0,0.00019287,2]
[373591476,1753055472368,-480.0,0.00019287,2]
[373591477,1753055472377,-566.65,0.00019287,2]
[373591478,1753055472387,-480.0,0.00019287,2]
[373591479,1753055472396,-480.0,0.00019287,2]
[373591480,1753055472405,-480.0,0.00019287,2]
[373591481,1753055472414,-996.3,0.00019287,2]
[373591482,1753055472425,-566.48,0.00019287,2]
[373591483,1753055472435,-480.0,0.00019287,2]
[373591484,1753055472444,-480.0,0.00019287,2]
[373591485,1753055472453,-480.0,0.00019287,2]
[373591486,1753055472462,-480.0,0.00019287,2]
[373591487,1753055472471,-480.0,0.00019287,2]
[373591488,1753055472480,-480.0,0.00019287,2]
[373591489,1753055472491,-517.45,0.00019287,2]
[373591490,1753055472500,-1698.74,0.00019287,2]
[373591491,1753055472509,-2386.97,0.00019287,2]
[373591492,1753055472518,-3864.18,0.00019287,2]
[373591493,1753055472527,-8107.22,0.00019287,2]
[373591494,1753055472538,-480.0,0.00019287,2]
[373591495,1753055472549,-480.0,0.00019287,2]
[373591496,1753055472558,-480.0,0.00019287,2]
[373591497,1753055472568,-480.0,0.00019287,2]
[373591498,1753055472578,-945.51,0.00019287,2]
[373591499,1753055472587,-663.89,0.00019287,2]
[373591500,1753055472597,-480.0,0.00019287,2]
[373591501,1753055472607,-440.0,0.00019287,2]
[373591502,1753055472617,-465.87620798,0.00019287,2]
[373591503,1753055472627,-1066.56,0.00019287,2]
[373591504,1753055472637,-480.0,0.00019287,2]
[373591505,1753055472646,-513.16,0.00019287,2]
[373591506,1753055472656,-480.0,0.00019287,2]
[373591507,1753055472665,-385.58766903,0.00019287,2]
[373591508,1753055472675,-480.0,0.00019287,2]
[373591509,1753055472684,-480.0,0.00019287,2]
[373591510,1753055472693,-480.0,0.00019287,2]
[373591511,1753055472703,-530.44,0.00019287,2]
[373591512,1753055472713,-729.2,0.00019287,2]
[373591513,1753055472722,-846.49,0.00019287,2]
[373591514,1753055472732,-157.35768917,0.00019287,2]
[373591515,1753055472741,-480.0,0.00019287,2]
[373591516,1753055472754,-4546.29,0.00019287,2]
[373591517,1753055472763,-1554.92,0.00019287,2]
[373591518,1753055472773,-480.0,0.00019287,2]
[373591519,1753055472783,-800.06,0.00019287,2]
[373591520,1753055472792,-480.0,0.00019287,2]
[373591521,1753055472802,-480.0,0.00019287,2]
[373591522,1753055472812,-1859.83,0.00019287,2]
[373591523,1753055472821,-1133.03,0.00019287,2]
[373591524,1753055472830,-888.11,0.00019287,2]
[373591525,1753055472839,-480.0,0.00019287,2]
[373591526,1753055472849,-548.54,0.00019287,2]
[373591527,1753055472858,-480.0,0.00019287,2]
[373591528,1753055472867,-775.2,0.00019287,2]
[373591529,1753055472877,-1073.63,0.00019287,2]
[373591530,1753055472886,-480.0,0.00019287,2]
[373591531,1753055472896,-886.56,0.00019287,2]
[373591532,1753055472904,-440.0,0.00019287,2]
[373591533,1753055472914,-2149.1,0.00019287,2]
[373591534,1753055472923,-480.0,0.00019287,2]
[373591535,1753055472932,-460.0,0.00019287,2]
[373591536,1753055472942,-480.0,0.00019287,2]
[373591537,1753055472951,-3977.95,0.00019287,2]
[373591538,1753055472960,-480.0,0.00019287,2]
[373591539,1753055472969,-927.74,0.00019287,2]
[373591540,1753055472978,-974.5,0.00019287,2]